[Event "24th Bosnjaci Open 2019"]
[Site "Bosnjaci"]
[Date "2019.01.09"]
[Round "9.12"]
[White "Ljikar, Zoran"]
[Black "Borzan, Andrej"]
[Result "1-0"]
[ECO "B07"]
[WhiteElo "2207"]
[BlackElo "1818"]
[Annotator "NA"]
[PlyCount "107"]
[EventDate "2019.01.03"]
[EventType "swiss"]
[EventCountry "CRO"]
[SourceTitle "playchess.com"]
[Source "ChessBase"]
[SourceQuality "1"]
[TimeControl "5400+30"]

1. e4 {[%emt 0:00:30]} d6 {[%emt 0:00:30]} 2. d4 {[%emt 0:00:00]} Nf6 {[%emt 0:00:00]} 3. Nc3 {[%emt 0:00:00]} g6 {[%emt 0:00:00]} 4. Be3 {[%emt 0:00:00]} Bg7 {[%emt 0:00:30]} 5. Qd2 {[%emt 0:00:00]} O-O {[%emt 0:00:00]} 6. O-O-O {[%emt 0:00:30] B07: Pirc Defence: Miscellaneous Systems} Nbd7 {[%emt 0:01:00]} (6... c6 7. f3 b5 8. g4 b4 9. Nce2 Qa5 10. Kb1 c5 11. Bh6 Nc6 12. Bxg7 Kxg7 13. g5 Nd7 14. d5 Nce5 15. Nc1 Nb6 16. h4 {1-0 (33) Najer,E (2664)-Petrosian,T (2607) Moscow 2016}) 7. Bh6 {[%emt 0:00:30] LiveBook: 3 Games} c5 {[%emt 0:02:30]} 8. d5 {[%emt 0:09:30]} (8. Bxg7 $16 Kxg7 {[#]} 9. e5 $1 {[%mdl 512]}) 8... a6 {[%emt 0:03:30]} 9. h4 {[%emt 0:00:30]} b5 $146 {[%emt 0:01:30]} ({Predecessor:} 9... Bxh6 10. Qxh6 Ng4 11. Qd2 h5 12. f3 Nge5 13. g4 Nf6 14. gxh5 Nxh5 {1-0 (50) Dunn,A (2039)-Paul,R (1841) Dundee 2017}) 10. f3 {[%emt 0:00:30]} b4 {[%emt 0:01:30]} 11. Nce2 $1 {[%emt 0:00:00]} a5 {[%emt 0:00:30]} ({Black should try} 11... Ne5 $11) 12. h5 {[%emt 0:01:00]} a4 {[%emt 0:02:30]} ({Wrong is} 12... Nxh5 $2 {[#]} 13. Rxh5 $1 {[%mdl 512]} Bxh6 14. Rxh6 $18) 13. Bxg7 {[%emt 0:00:30]} Kxg7 {[%emt 0:00:30]} 14. hxg6 {[%emt 0:00:30]} fxg6 {[%emt 0:00:30] [#]} 15. Qh6+ {[%emt 0:00:30]} (15. Nh3 $1 $16) 15... Kg8 {[%emt 0:00:00]} 16. Nh3 {[%emt 0:00:30]} Ne5 {[%emt 0:01:00]} 17. Ng5 {[%emt 0:00:30]} (17. Nef4 $5 {[%cal Rh3g5]}) 17... Nf7 {[%emt 0:00:30]} 18. Nxf7 {[%emt 0:00:30]} Rxf7 {[%emt 0:00:30]} 19. Nf4 {[%emt 0:06:30]} Qf8 {[%emt 0:05:30]} 20. Qh2 {[%emt 0:03:30]} Qg7 {[%emt 0:00:30]} 21. e5 {[%emt 0:33:30]} dxe5 {[%emt 0:04:30]} 22. Ne6 {[%emt 0:00:30]} Bxe6 {[%emt 0:01:30]} 23. dxe6 {[%emt 0:00:00]} Rff8 {[%emt 0:00:30]} 24. Qxe5 {[%emt 0:00:00]} a3 {[%emt 0:01:30]} 25. b3 {[%emt 0:00:30]} Rfd8 {[%emt 0:02:30]} 26. Bb5 {[%emt 0:05:30]} Rac8 {[%emt 0:06:30]} 27. Rhe1 {[%emt 0:06:30] [#]} (27. Ba6 $11 Ra8 28. Bb7) 27... Nh5 $2 {[%emt 0:04:30]} (27... Qh6+ $1 $17 28. Kb1 Rd2) 28. Rd7 {[%emt 0:01:30]} Kf8 {[%emt 0:02:30]} 29. Qxg7+ {[%emt 0:07:30]} Nxg7 {[%emt 0:01:30]} 30. Re5 {[%emt 0:00:30]} h6 {[%emt 0:02:30]} 31. Rxd8+ {[%emt 0:00:30]} Rxd8 {[%emt 0:00:00]} 32. Bd7 {[%emt 0:00:30]} Nf5 {[%emt 0:05:00]} 33. Rxc5 {[%emt 0:00:30]} Nd6 {[%emt 0:00:30]} 34. c3 {[%emt 0:00:30]} Rb8 {[%emt 0:01:30]} 35. Kd2 {[%emt 0:04:28]} Kg7 {[%emt 0:01:30]} 36. cxb4 {[%emt 0:00:47]} Rxb4 {[%emt 0:00:30]} 37. Ra5 {[%emt 0:00:06]} Rh4 {[%emt 0:00:30]} 38. Ke2 {[%emt 0:00:38]} Nf5 {[%emt 0:02:30]} 39. Rxa3 {[%emt 0:03:38]} g5 {[%emt 0:01:30]} 40. Ra5 {[%emt 0:05:57]} Kf6 {[%emt 0:00:30]} 41. g4 {[%emt 0:00:24]} Rh2+ {[%emt 0:01:30]} 42. Kd3 {[%emt 0:00:10]} Nd6 {[%emt 0:01:30]} 43. Ra8 {[%emt 0:00:42]} Rh3 {[%emt 0:01:30]} 44. Ke2 {[%emt 0:02:02]} h5 {[%emt 0:02:30]} 45. gxh5 $18 {[%emt 0:00:06]} Rxh5 {[%emt 0:00:00]} 46. a4 {[%emt 0:00:48]} Ke5 {[%emt 0:00:00]} 47. a5 {[%emt 0:03:28]} Rh2+ {[%emt 0:00:30]} 48. Kd3 {[%emt 0:00:40]} Rh3 {[%emt 0:00:30]} 49. Rf8 {[%emt 0:00:29]} Nf5 {[%emt 0:01:30]} 50. a6 {[%emt 0:02:23]} Rxf3+ {[%emt 0:00:30]} 51. Kd2 {[%emt 0:00:08]} Rf2+ {[%emt 0:00:30]} 52. Kc3 {[%emt 0:00:01]} Ra2 {[%emt 0:00:30]} 53. Ba4 {[%emt 0:00:05]} Nd6 {[%emt 0:00:30]} 54. Kb4 {[%emt 0:00:58]} 1-0

[Event "24th Bosnjaci Open 2019"]
[Site "Bosnjaci"]
[Date "2019.01.09"]
[Round "9.13"]
[White "Jergovic, Andrija"]
[Black "Blagojevic, Marijan"]
[Result "0-1"]
[ECO "E69"]
[WhiteElo "2012"]
[BlackElo "2203"]
[Annotator "RC"]
[PlyCount "168"]
[EventDate "2019.01.03"]
[EventType "swiss"]
[EventCountry "CRO"]
[SourceTitle "playchess.com"]
[Source "ChessBase"]
[SourceQuality "1"]
[TimeControl "5400+30"]

1. d4 {[%emt 0:00:30] 0} g6 {[%emt 0:03:30] 0} 2. Nf3 {[%emt 0:00:30] 0} Bg7 {[%emt 0:00:00]} 3. g3 {[%emt 0:00:30]} Nf6 {[%emt 0:01:00]} 4. c4 {[%emt 0:00:30]} O-O {[%emt 0:00:00]} 5. Bg2 {[%emt 0:00:00]} d6 {[%emt 0:00:00]} 6. O-O {[%emt 0:00:00]} c6 {[%emt 0:02:30]} 7. Nc3 {[%emt 0:00:00]} Nbd7 {[%emt 0:00:30]} 8. e4 {[%emt 0:00:00]} e5 {[%emt 0:00:30]} 9. h3 {[%emt 0:00:00]} Re8 {[%emt 0:00:30]} 10. Re1 {[%emt 0:01:00]} Qc7 {[%emt 0:03:30]} 11. Be3 {[%emt 0:00:00]} exd4 {[%emt 0:00:30]} 12. Nxd4 {[%emt 0:00:00]} Nc5 {[%emt 0:01:30]} 13. Qc2 {[%emt 0:00:30]} a5 {[%emt 0:03:30]} 14. b3 {[%emt 0:00:30]} Nfd7 {[%emt 0:04:30]} 15. Rad1 {[%emt 0:00:30]} Na6 {[%emt 0:01:30]} 16. f4 {[%emt 0:03:30]} Ndc5 {[%emt 0:02:30]} 17. Bf2 {[%emt 0:07:30]} Nb4 {[%emt 0:02:30]} 18. Qb1 {[%emt 0:00:30]} Nba6 {[%emt 0:09:30]} 19. Kh2 {[%emt 0:13:30]} Bd7 {[%emt 0:02:30]} 20. Rd2 {[%emt 0:03:30]} f5 {[%emt 0:12:30]} 21. exf5 {[%emt 0:01:30]} Bxf5 {[%emt 0:01:30]} 22. Qd1 {[%emt 0:01:30]} Rxe1 {[%emt 0:01:30]} 23. Bxe1 {[%emt 0:01:30]} Bd7 {[%emt 0:01:30]} 24. Ne4 {[%emt 0:02:30]} Nxe4 {[%emt 0:01:30]} 25. Bxe4 {[%emt 0:01:30]} Nc5 {[%emt 0:01:30]} 26. Bg2 {[%emt 0:00:30]} Re8 {[%emt 0:01:30]} 27. Re2 {[%emt 0:12:30]} Rxe2 {[%emt 0:04:30]} 28. Nxe2 {[%emt 0:01:30]} Bf5 {[%emt 0:00:30]} 29. Nd4 {[%emt 0:06:30]} Bd3 {[%emt 0:09:30]} 30. Ne6 {[%emt 0:08:30]} Nxe6 {[%emt 0:02:30]} 31. Qxd3 {[%emt 0:00:30]} Nc5 {[%emt 0:02:30]} 32. Qd2 {[%emt 0:04:30]} a4 {[%emt 0:03:30]} 33. b4 {[%emt 0:02:30]} Ne6 {[%emt 0:01:30]} 34. Bf2 {[%emt 0:01:30]} Kf7 {[%emt 0:03:53]} 35. a3 {[%emt 0:07:30] 7} Qe7 {[%emt 0:02:44]} 36. Qc2 {[%emt 0:04:28]} Nd4 {[%emt 0:00:51]} 37. Qxa4 {[%emt 0:12:15]} Qe2 {[%emt 0:00:35]} 38. Kg1 {[%emt 0:00:48]} Qxc4 {[%emt 0:04:16]} 39. Qa7 {[%emt 0:00:37]} d5 {[%emt 0:01:43]} 40. Qxb7+ {[%emt 0:00:34]} Kg8 {[%emt 0:01:19]} 41. Qa8+ {[%emt 0:02:07]} Bf8 {[%emt 0:00:12]} 42. Qa7 {[%emt 0:00:27]} Nb5 {[%emt 0:00:51]} 43. Qe3 {[%emt 0:00:21]} d4 {[%emt 0:02:45]} 44. Qf3 {[%emt 0:01:11]} d3 {[%emt 0:00:42]} 45. Qd1 {[%emt 0:01:26]} Nc3 {[%emt 0:00:29]} 46. Qd2 {[%emt 0:00:21]} Nb1 {[%emt 0:02:09]} 47. Qd1 {[%emt 0:00:23]} Qc2 {[%emt 0:00:36]} 48. Qxc2 {[%emt 0:00:56]} dxc2 {[%emt 0:00:02]} 49. Be3 {[%emt 0:00:14]} Nc3 {[%emt 0:02:42]} 50. Bf1 {[%emt 0:00:31]} Nb1 {[%emt 0:01:23]} 51. Bc1 {[%emt 0:00:42]} Nc3 {[%emt 0:00:41]} 52. Bb2 {[%emt 0:00:16]} Bg7 {[%emt 0:00:12]} 53. Bc1 {[%emt 0:00:26]} Kf8 {[%emt 0:00:09]} 54. Bd3 {[%emt 0:00:17]} Na2 {[%emt 0:00:12]} 55. Bxc2 {[%emt 0:00:29]} Nxc1 {[%emt 0:00:02]} 56. a4 {[%emt 0:00:25]} Ne2+ {[%emt 0:00:02]} 57. Kg2 {[%emt 0:00:09]} Bc3 {[%emt 0:00:58]} 58. b5 {[%emt 0:00:08]} cxb5 {[%emt 0:00:58]} 59. axb5 {[%emt 0:00:06]} Nd4 {[%emt 0:00:00]} 60. Bd3 {[%emt 0:00:38]} Ba5 {[%emt 0:00:18]} 61. h4 {[%emt 0:00:17]} Kg7 {[%emt 0:00:04]} 62. g4 {[%emt 0:00:58]} h6 {[%emt 0:02:09]} 63. Kh3 {[%emt 0:01:01]} Ne6 {[%emt 0:00:05]} 64. Kg3 {[%emt 0:00:31]} Bc7 {[%emt 0:00:00]} 65. Kf3 {[%emt 0:00:29]} Nxf4 {[%emt 0:00:00]} 66. b6 {[%emt 0:00:40]} Bb8 {[%emt 0:00:00]} 67. Bc4 {[%emt 0:00:15]} Kf6 {[%emt 0:00:00]} 68. Ba2 {[%emt 0:00:40]} Ke5 {[%emt 0:00:00]} 69. Bf7 {[%emt 0:00:10]} Kf6 {[%emt 0:00:00]} 70. Ba2 {[%emt 0:00:32]} Ke5 {[%emt 0:00:00]} 71. Bf7 {[%emt 0:00:53]} g5 {[%emt 0:00:00]} 72. hxg5 {[%emt 0:00:33]} hxg5 {[%emt 0:00:00]} 73. Ba2 {[%emt 0:00:36]} Kd4 {[%emt 0:00:00]} 74. Bb1 {[%emt 0:00:37]} Nd3 {[%emt 0:00:00]} 75. Ke2 {[%emt 0:00:41]} Nc5 {[%emt 0:00:00]} 76. Bf5 {[%emt 0:00:39]} Na4 {[%emt 0:00:00]} 77. b7 {[%emt 0:00:34]} Nc5 {[%emt 0:00:00]} 78. Kf3 {[%emt 0:00:30]} Nxb7 {[%emt 0:00:01]} 79. Kg2 {[%emt 0:00:33]} Ke3 {[%emt 0:00:08]} 80. Kh3 {[%emt 0:00:34] [%clk 0:00.24]} Kf2 {[%emt 0:01:11]} 81. Bb1 {[%emt 0:00:11]} Nd6 {[%emt 0:00:12]} 82. Bh7 {[%emt 0:00:39]} Nb5 {[%emt 0:00:14]} 83. Be4 {[%emt 0:00:20]} Nd4 {[%emt 0:00:03]} 84. Bd5 {[%emt 0:00:17]} Ne2 {[%emt 0:00:03]} 0-1

[Event "24th Bosnjaci Open 2019"]
[Site "Bosnjaci"]
[Date "2019.01.09"]
[Round "9.14"]
[White "Pasalic, Adnan"]
[Black "Babic, Zvonko"]
[Result "0-1"]
[ECO "A59"]
[WhiteElo "1973"]
[BlackElo "2190"]
[Annotator "NA"]
[PlyCount "60"]
[EventDate "2019.01.03"]
[EventType "swiss"]
[EventCountry "CRO"]
[SourceTitle "playchess.com"]
[Source "ChessBase"]
[SourceQuality "1"]
[TimeControl "5400+30"]

1. d4 {[%emt 0:00:30]} Nf6 {[%emt 0:00:30]} 2. c4 {[%emt 0:00:00]} c5 {[%emt 0:00:00]} 3. d5 {[%emt 0:00:00]} b5 {[%emt 0:00:00]} 4. cxb5 {[%emt 0:00:30]} a6 {[%emt 0:00:00]} 5. bxa6 {[%emt 0:01:30]} g6 {[%emt 0:00:00]} 6. Nc3 {[%emt 0:00:30]} Bxa6 {[%emt 0:00:30]} 7. e4 {[%emt 0:00:30]} Bxf1 {[%emt 0:00:00]} 8. Kxf1 {[%emt 0:00:30]} d6 {[%emt 0:00:00]} 9. g3 {[%emt 0:00:30]} Bg7 {[%emt 0:00:30]} 10. Nge2 {[%emt 0:00:00]} O-O {[%emt 0:01:30]} 11. Kg2 {[%emt 0:02:00]} Nbd7 {[%emt 0:01:30]} 12. Rb1 {[%emt 0:05:30] LiveBook: 6 Games} Ra6 {[%emt 0:08:30] A59: Benko/Volga Gambit: White castles by hand} 13. b3 {[%emt 0:08:30]} Qa8 {[%emt 0:04:30]} 14. Bb2 $146 {[%emt 0:03:30]} ({Predecessor:} 14. f3 e6 15. dxe6 fxe6 16. Nf4 d5 17. exd5 exd5 18. a4 d4 19. Nb5 Nd5 20. Rf1 {0-1 (38) Chalmeta Ugas,J (2187)-Cruz,J (2471) Barbera del Valles 2014}) 14... Rb8 {[%emt 0:03:30]} 15. Qc2 {[%emt 0:03:30]} Ne5 {[%emt 0:03:30]} 16. Na4 {[%emt 0:05:30]} Nfd7 {[%emt 0:10:30]} 17. h3 {[%emt 0:14:30]} Nb6 {[%emt 0:11:30]} 18. Nec3 {[%emt 0:01:30]} c4 {[%emt 0:01:30]} 19. Nxb6 $11 {[%emt 0:12:30]} cxb3 {[%emt 0:02:30]} 20. axb3 {[%emt 0:02:30]} Raxb6 {[%emt 0:00:30]} 21. Ba1 {[%emt 0:06:30]} Qb7 {[%emt 0:04:30]} 22. Ne2 {[%emt 0:03:30]} Rxb3 {[%emt 0:05:30]} 23. Rxb3 {[%emt 0:00:30]} Qxb3 {[%emt 0:00:30]} 24. Qxb3 {[%emt 0:02:30]} Rxb3 {[%emt 0:00:30]} 25. Nf4 {[%emt 0:00:30]} Bh6 {[%emt 0:00:30]} 26. Rc1 {[%emt 0:01:30]} Kg7 {[%emt 0:00:30]} 27. Rc3 {[%emt 0:00:30]} Rb4 {[%emt 0:01:30]} 28. f3 {[%emt 0:00:30]} Rd4 {[%emt 0:01:30]} 29. Re3 {[%emt 0:03:30]} Rd2+ {[%emt 0:00:30]} 30. Re2 {[%emt 0:00:00]} Bxf4 {[%emt 0:00:30]} 0-1

[Event "24th Bosnjaci Open 2019"]
[Site "Bosnjaci"]
[Date "2019.01.09"]
[Round "9.15"]
[White "Radovic, Sinisa"]
[Black "Boban, Sten"]
[Result "0-1"]
[ECO "C97"]
[WhiteElo "1955"]
[BlackElo "2105"]
[Annotator "NA"]
[PlyCount "130"]
[EventDate "2019.01.03"]
[EventType "swiss"]
[EventCountry "CRO"]
[SourceTitle "playchess.com"]
[Source "ChessBase"]
[SourceQuality "1"]
[TimeControl "5400+30"]

1. e4 {[%emt 0:04:30]} e5 {[%emt 0:00:30]} 2. Nf3 {[%emt 0:00:30]} Nc6 {[%emt 0:00:30]} 3. Bb5 {[%emt 0:00:00]} a6 {[%emt 0:00:30]} 4. Ba4 {[%emt 0:00:00]} Nf6 {[%emt 0:00:00]} 5. O-O {[%emt 0:00:30]} Be7 {[%emt 0:00:00]} 6. Re1 {[%emt 0:00:00]} b5 {[%emt 0:00:30]} 7. Bb3 {[%emt 0:00:00]} O-O {[%emt 0:00:30]} 8. h3 {[%emt 0:00:00]} d6 {[%emt 0:00:30]} 9. c3 {[%emt 0:00:00]} Na5 {[%emt 0:00:30]} 10. Bc2 {[%emt 0:00:30]} c5 {[%emt 0:00:30]} 11. d4 {[%emt 0:00:00]} Qc7 {[%emt 0:00:30]} 12. d5 {[%emt 0:00:00]} Bd7 {[%emt 0:16:30]} 13. Nbd2 {[%emt 0:00:00]} Rab8 {[%emt 0:00:30] C97: Closed Ruy Lopez: Chigorin Defence: 11 d4 Qc7, sidelines} (13... c4 14. Nf1 Nb7 15. Bg5 Nc5 16. Ng3 Kh8 17. Qd2 Ng8 18. Be3 g6 19. Nh2 a5 20. f4 f6 21. Rf1 Rab8 22. f5 b4 {0-1 (49) Almasi,Z (2650)-Banusz,T (2592) Ajka 2018}) 14. b3 {[%emt 0:00:00]} Ne8 {[%emt 0:06:30]} 15. g4 $146 {[%emt 0:00:30]} ({Predecessor:} 15. Nf1 f5 16. exf5 Bxf5 17. Bxf5 Rxf5 18. Ng3 Rf8 19. Ne4 h6 20. Be3 Qd7 21. Nfd2 {½-½ (40) Badilles,G-Cardoso,R Jakarta 1963}) 15... g6 {[%emt 0:00:30]} 16. Nf1 {[%emt 0:00:30]} Ng7 {[%emt 0:02:30]} 17. Ng3 {[%emt 0:03:30]} Qc8 {[%emt 0:04:30]} 18. Bh6 {[%emt 0:06:30]} Nb7 {[%emt 0:01:30]} 19. Kg2 {[%emt 0:06:30]} Nd8 {[%emt 0:00:30]} 20. Rg1 {[%emt 0:02:30]} f6 {[%emt 0:00:30]} 21. Nh2 {[%emt 0:06:30]} Nf7 {[%emt 0:00:30]} 22. Bxg7 {[%emt 0:02:30]} Kxg7 {[%emt 0:00:00]} 23. Kh1 {[%emt 0:00:30]} Ng5 {[%emt 0:08:00]} 24. Kg2 {[%emt 0:06:30]} Rh8 {[%emt 0:06:30]} 25. h4 {[%emt 0:03:30]} Nf7 {[%emt 0:01:30]} 26. Kh1 {[%emt 0:03:30]} Kf8 {[%emt 0:05:30]} 27. Qf3 {[%emt 0:01:30]} Ke8 {[%emt 0:00:30]} 28. Rac1 {[%emt 0:04:30]} Rf8 {[%emt 0:01:30]} 29. Qe2 {[%emt 0:03:30]} Rg8 {[%emt 0:09:30]} 30. f3 {[%emt 0:01:30]} Bf8 {[%emt 0:01:30]} 31. Rg2 {[%emt 0:01:30]} Qd8 {[%emt 0:00:00]} 32. Bb1 {[%emt 0:05:30]} Bh6 {[%emt 0:01:00]} 33. Rcg1 {[%emt 0:00:30]} Qa5 {[%emt 0:00:00]} 34. Qe1 {[%emt 0:01:30]} Ke7 {[%emt 0:01:00]} 35. Nhf1 {[%emt 0:00:30]} Rgc8 {[%emt 0:01:30]} 36. Ne2 {[%emt 0:02:30]} Qb6 {[%emt 0:03:30]} 37. Neg3 {[%emt 0:05:30]} a5 {[%emt 0:00:00]} 38. Rb2 {[%emt 0:04:30]} Qc7 {[%emt 0:04:00]} 39. Ne2 {[%emt 0:02:30]} c4 {[%emt 0:04:30]} 40. b4 {[%emt 0:02:30]} Qa7 {[%emt 0:01:30]} 41. Rg2 {[%emt 0:01:30]} axb4 {[%emt 0:00:41]} 42. Rxb4 {[%emt 0:00:30]} Rc7 {[%emt 0:01:49]} 43. Nc1 {[%emt 0:00:30]} Qa3 {[%emt 0:01:04]} 44. Ne2 {[%emt 0:00:30]} Ra8 {[%emt 0:00:34]} 45. Qd1 {[%emt 0:00:30]} Rca7 {[%emt 0:01:15]} 46. Qc2 {[%emt 0:00:30]} Qa5 {[%emt 0:00:27]} 47. Qd1 {[%emt 0:01:30]} Qc7 {[%emt 0:00:12]} 48. Rb2 {[%emt 0:01:35]} Ra3 {[%emt 0:00:30]} 49. Qe1 {[%emt 0:01:30]} R8a4 {[%emt 0:00:53]} 50. Ng1 {[%emt 0:04:19]} Qa7 {[%emt 0:01:34]} 51. Rgc2 {[%emt 0:01:25]} Nd8 {[%emt 0:00:09]} 52. Rb4 {[%emt 0:01:11]} Ra5 {[%emt 0:01:04]} 53. Rcb2 {[%emt 0:02:52]} Nb7 {[%emt 0:02:09]} 54. Ne2 {[%emt 0:00:39]} Nc5 {[%emt 0:00:32]} 55. Qd1 {[%emt 0:00:26]} Na6 {[%emt 0:00:13]} 56. Kg2 {[%emt 0:01:55]} Qc7 {[%emt 0:02:45]} 57. Qc2 $19 {[%emt 0:01:11]} Nxb4 {[%emt 0:02:47]} 58. Rxb4 {[%emt 0:00:06]} Qc5 {[%emt 0:00:39]} 59. Rb2 {[%emt 0:01:36]} Ra8 {[%emt 0:00:11]} 60. Rb4 {[%emt 0:01:48]} Rf8 {[%emt 0:01:36]} 61. Neg3 {[%emt 0:00:16]} Bf4 {[%emt 0:01:02]} 62. Ne2 {[%emt 0:01:19]} Be3 {[%emt 0:00:16]} 63. Neg3 {[%emt 0:01:18]} Qa7 {[%emt 0:00:54]} 64. Ne2 {[%emt 0:00:25]} h5 {[%emt 0:00:53]} 65. Kg3 {[%emt 0:00:13]} Bf2+ {[%emt 0:01:40]} 0-1

[Event "24th Bosnjaci Open 2019"]
[Site "Bosnjaci"]
[Date "2019.01.09"]
[Round "9.16"]
[White "Ascic, Anto"]
[Black "Duda, Daniel"]
[Result "1-0"]
[ECO "D36"]
[WhiteElo "2093"]
[BlackElo "1991"]
[Annotator "NA"]
[PlyCount "107"]
[EventDate "2019.01.03"]
[EventType "swiss"]
[EventCountry "CRO"]
[SourceTitle "playchess.com"]
[Source "ChessBase"]
[SourceQuality "1"]
[TimeControl "5400+30"]

1. d4 {[%emt 0:00:30]} d5 {[%emt 0:00:30]} 2. c4 {[%emt 0:00:00]} e6 {[%emt 0:00:00]} 3. Nc3 {[%emt 0:00:00]} Nf6 {[%emt 0:00:00]} 4. Bg5 {[%emt 0:00:00]} Be7 {[%emt 0:00:00]} 5. e3 {[%emt 0:00:00]} Nbd7 {[%emt 0:00:00]} 6. cxd5 {[%emt 0:00:30]} exd5 {[%emt 0:00:30]} 7. Bd3 {[%emt 0:00:30]} c6 {[%emt 0:00:00]} 8. Qc2 {[%emt 0:00:00]} h6 {[%emt 0:00:00]} 9. Bh4 {[%emt 0:00:00]} Nh5 {[%emt 0:00:30]} 10. Bxe7 {[%emt 0:00:00] D36: Queen's Gambit Declined: Exchange Variation: Main line (5 Bg5 c6 6 Qc2)} Qxe7 {[%emt 0:00:30]} 11. Nf3 {[%emt 0:00:00]} (11. O-O-O Nb6 12. Nf3 Nf6 13. Kb1 Be6 14. Ka1 O-O-O 15. Na4 Kb8 16. Rc1 Rhe8 17. Nc5 Bc8 {1-0 (50) Nepomniachtchi,I (2757)-Nisipeanu,L (2672) Dortmund 2018}) 11... Nf4 {[%emt 0:00:30]} 12. O-O {[%emt 0:00:30]} Nxd3 {[%emt 0:00:30]} 13. Qxd3 {[%emt 0:00:30]} Nf6 {[%emt 0:01:30]} 14. Ne5 {[%emt 0:00:30]} O-O {[%emt 0:00:30]} 15. f3 $146 {[%emt 0:02:30]} ({Predecessor:} 15. a3 Re8 16. b4 Ne4 17. b5 Qg5 {1-0 (40) Rapport,J (2318)-Repkova,E (2332) Baku 2016}) 15... Be6 {[%emt 0:03:30]} 16. Na4 {[%emt 0:02:30]} Rac8 {[%emt 0:11:30]} 17. Rac1 {[%emt 0:09:30]} Qd6 {[%emt 0:02:30]} 18. Nc5 {[%emt 0:01:30]} b6 {[%emt 0:04:30]} 19. Nxe6 {[%emt 0:00:30]} Qxe6 {[%emt 0:02:30]} 20. b4 {[%emt 0:01:30]} Ne8 {[%emt 0:10:30]} 21. e4 {[%emt 0:07:30]} c5 {[%emt 0:16:30]} 22. Rfd1 {[%emt 0:04:30]} Nf6 {[%emt 0:01:30]} 23. bxc5 {[%emt 0:06:30]} bxc5 {[%emt 0:00:30]} 24. exd5 {[%emt 0:02:30]} Qxd5 {[%emt 0:01:30]} 25. Qb3 {[%emt 0:07:30]} cxd4 {[%emt 0:03:30]} 26. Rxc8 {[%emt 0:00:30]} Rxc8 {[%emt 0:00:30]} 27. Qxd5 {[%emt 0:00:30]} Nxd5 {[%emt 0:00:30]} 28. Rxd4 {[%emt 0:00:00]} Rc1+ {[%emt 0:01:30]} 29. Kf2 $11 {[%emt 0:00:00]} Rc2+ {[%emt 0:00:30]} 30. Ke1 {[%emt 0:05:30]} Ne3 {[%emt 0:04:30]} 31. Rd8+ {[%emt 0:00:30]} Kh7 {[%emt 0:00:30]} 32. Rd2 {[%emt 0:00:00]} Nxg2+ {[%emt 0:01:30]} 33. Kd1 {[%emt 0:03:00]} Ne3+ {[%emt 0:01:30]} 34. Ke2 {[%emt 0:00:00]} f6 {[%emt 0:03:30]} 35. Rxc2 {[%emt 0:02:00]} Nxc2 {[%emt 0:00:30]} 36. Nc6 {[%emt 0:00:30]} a6 {[%emt 0:01:30]} 37. a4 {[%emt 0:00:00]} Kg6 {[%emt 0:00:30]} 38. Kd2 {[%emt 0:03:00]} Na3 {[%emt 0:01:30]} 39. Kc3 {[%emt 0:00:30]} Kf5 {[%emt 0:07:52]} 40. Nb4 {[%emt 0:13:30]} Kf4 {[%emt 0:04:07]} 41. Nxa6 {[%emt 0:01:30]} Kxf3 {[%emt 0:00:28]} 42. Nc7 {[%emt 0:00:00]} Ke2 {[%emt 0:06:00]} 43. a5 {[%emt 0:02:00]} f5 {[%emt 0:00:01]} 44. a6 {[%emt 0:00:30]} f4 {[%emt 0:00:03]} 45. a7 {[%emt 0:00:30]} f3 {[%emt 0:00:01]} 46. a8=Q {[%emt 0:00:30]} f2 {[%emt 0:00:11]} 47. Qe4+ {[%emt 0:05:30]} Kd1 {[%emt 0:00:36]} 48. Qd3+ {[%emt 0:04:30]} Ke1 {[%emt 0:00:02]} 49. Qe3+ {[%emt 0:00:30]} Kf1 {[%emt 0:00:03]} 50. Nd5 {[%emt 0:02:29]} g5 {[%emt 0:00:23]} 51. Kd3 {[%emt 0:02:13]} g4 {[%emt 0:01:32]} 52. Qg3 {[%emt 0:00:25]} h5 {[%emt 0:00:24]} 53. Ne3+ {[%emt 0:00:09]} Ke1 {[%emt 0:00:01]} 54. Qg2 {[%emt 0:00:15]} 1-0

[Event "24th Bosnjaci Open 2019"]
[Site "Bosnjaci"]
[Date "2019.01.09"]
[Round "9.17"]
[White "Ljubicic, Mario"]
[Black "Egerc, Josip"]
[Result "0-1"]
[ECO "C01"]
[WhiteElo "1886"]
[BlackElo "2081"]
[Annotator "NA"]
[PlyCount "72"]
[EventDate "2019.01.03"]
[EventType "swiss"]
[EventCountry "CRO"]
[SourceTitle "playchess.com"]
[Source "ChessBase"]
[SourceQuality "1"]
[TimeControl "5400+30"]

1. e4 {[%emt 0:00:30]} e6 {[%emt 0:28:30]} 2. d4 {[%emt 0:00:00]} d6 {[%emt 0:02:30]} 3. Nf3 {[%emt 0:01:00]} g6 {[%emt 0:00:00]} 4. Bd3 {[%emt 0:01:30] C01: French: Exchange Variation} Bg7 {[%emt 0:00:00]} 5. c3 {[%emt 0:00:30]} Nd7 {[%emt 0:00:30]} (5... Ne7 6. O-O O-O 7. Re1 Nd7 8. Nbd2 b6 9. a4 a6 10. Nc4 Bb7 11. Qe2 h6 12. Bd2 Nf6 {½-½ (71) Potkin,V (2682)-Vitiugov,N (2733) Khanty-Mansiysk 2011}) 6. Be3 {[%emt 0:05:30]} Ne7 {[%emt 0:00:00]} 7. Qd2 {[%emt 0:00:30]} e5 $146 {[%emt 0:01:00]} ({Predecessor:} 7... h6 8. Na3 Nf6 9. h3 Bd7 10. c4 Bc6 11. d5 exd5 12. cxd5 {1-0 (35) Travnicek,P (2138)-Novotny,J (2131) Czechia 2012}) 8. Bh6 {[%emt 0:02:30]} Bxh6 {[%emt 0:00:30]} 9. Qxh6 {[%emt 0:00:30]} exd4 {[%emt 0:00:30]} 10. cxd4 {[%emt 0:01:30]} Ng8 {[%emt 0:00:30]} 11. Qd2 {[%emt 0:02:30]} c6 {[%emt 0:03:30]} ({Black should play} 11... d5 $14) 12. Nc3 {[%emt 0:01:30]} Nb6 {[%emt 0:02:30]} 13. e5 {[%emt 0:08:30]} Bg4 {[%emt 0:00:30]} 14. h3 {[%emt 0:05:30]} Bxf3 {[%emt 0:00:30]} 15. gxf3 {[%emt 0:00:30]} dxe5 {[%emt 0:01:30]} 16. dxe5 {[%emt 0:00:30]} Qd4 {[%emt 0:00:30]} 17. O-O-O $1 {[%emt 0:01:30]} Ne7 {[%emt 0:00:30] [#]} 18. Rhe1 {[%emt 0:05:30]} ({White should try} 18. Qg5 $1 $16) 18... O-O-O {[%emt 0:01:30]} 19. Kb1 {[%emt 0:03:30]} Qh4 {[%emt 0:04:30]} 20. Ne4 {[%emt 0:02:30]} Rhf8 {[%emt 0:02:30]} 21. f4 {[%emt 0:09:30]} Nf5 {[%emt 0:05:30]} 22. Ng5 {[%emt 0:10:30]} h6 {[%emt 0:04:30]} 23. e6 {[%emt 0:02:30]} hxg5 {[%emt 0:01:30]} 24. Bxf5 {[%emt 0:00:30]} fxe6 {[%emt 0:02:30]} 25. Bxe6+ {[%emt 0:01:30]} Kb8 {[%emt 0:00:30]} 26. Qxd8+ {[%emt 0:11:30]} Rxd8 {[%emt 0:00:30]} 27. Rxd8+ {[%emt 0:00:00]} Kc7 {[%emt 0:00:30]} 28. Red1 {[%emt 0:00:00]} gxf4 {[%emt 0:00:30]} 29. Rf8 {[%emt 0:01:30]} a5 {[%emt 0:01:30]} 30. f3 {[%emt 0:01:30]} Qf2 {[%emt 0:00:30]} 31. Rxf4 {[%emt 0:02:58]} g5 {[%emt 0:03:30]} 32. Rf7+ {[%emt 0:03:55]} Kb8 {[%emt 0:00:30]} 33. Rf8+ {[%emt 0:02:13]} Ka7 {[%emt 0:00:30]} 34. Rf5 {[%emt 0:03:21]} Ka6 $15 {[%emt 0:01:30]} (34... c5 $19 35. Bb3 a4) 35. Rxg5 {[%emt 0:01:00]} Na4 {[%emt 0:00:30]} 36. Bc4+ {[%emt 0:00:51]} Kb6 {[%emt 0:00:30]} 0-1